lending/lending_fUSD_20260119
["ID","MTS","AMOUNT","RATE_DAILY","PERIOD"]
[402714487,1768828231716,-500.0,0.00015695,2]
[402714489,1768828231726,-500.0,0.00015695,2]
[402714491,1768828231735,-2348.85188513,0.00015695,2]
[402714493,1768828231745,-500.0,0.00015695,2]
[402714495,1768828231757,-2063.61359854,0.00015695,2]
[402714497,1768828231767,-190.23418921,0.00015695,2]
[402714499,1768828231777,-1530.16,0.00015763,2]
[402714502,1768828231786,-500.0,0.00015795,2]
[402714503,1768828231796,-500.0,0.00015795,2]
[402714505,1768828231805,-500.0,0.00015795,2]
[402714508,1768828231815,-500.0,0.00015795,2]
[402714509,1768828231824,-500.0,0.00015795,2]
[402714512,1768828231834,-500.0,0.00015795,2]
[402714513,1768828231843,-500.0,0.00015795,2]
[402714516,1768828231853,-500.0,0.00015795,2]
[402714518,1768828231862,-511.80432216,0.00015795,2]
[402714520,1768828231872,-1264.0,0.00015798,2]
[402714521,1768828231881,-1264.0,0.00015798,2]
[402714524,1768828231890,-1264.0,0.00015798,2]
[402714526,1768828231900,-1264.0,0.00015798,2]
[402714528,1768828231909,-2348.85188508,0.0001594,2]
[402714530,1768828231919,-2063.61359853,0.0001594,2]
[402714532,1768828231929,-16829.7970201,0.00015951,2]
[402714534,1768828231939,-152.0,0.00016,2]
[402714536,1768828231947,-595.0,0.00016,2]
[402714538,1768828231956,-2348.85188508,0.00016185,2]
[402714540,1768828231964,-2063.61359853,0.00016185,2]
[402714542,1768828231973,-455.0,0.00016196,2]
[402714544,1768828231982,-150.0,0.000162,2]
[402714546,1768828231991,-500.0,0.00016219,2]
[402714548,1768828232000,-151.0,0.00016345,2]
[402714550,1768828232009,-151.0,0.00016345,2]
[402714552,1768828232019,-151.0,0.00016345,2]
[402714554,1768828232029,-151.0,0.00016345,2]
[402714556,1768828232038,-151.0,0.00016346,2]
[402714558,1768828232047,-151.0,0.00016346,2]
[402714560,1768828232056,-1730.37610734,0.00016411,2]
[402714562,1768828232068,-2744.73129266,0.00016411,2]
[402714564,1768828232078,-186.0883349,0.0001643,2]
[402714566,1768828232090,-2162.76355018,0.0001643,2]
[402714568,1768828232103,-2063.61359853,0.0001643,2]
[402714570,1768828232113,-356.23848352,0.00016438,2]
[402714572,1768828232123,-628.207059,0.00016438,2]
[402714575,1768828232135,-300.0,0.00016438,2]
[402714577,1768828232145,-300.0,0.00016438,2]
[402714578,1768828232154,-1000.0,0.00016438,2]
[402714581,1768828232164,-1000.0,0.00016438,2]
[402714582,1768828232175,-1000.0,0.00016438,2]
[402714585,1768828232184,-1000.0,0.00016438,2]
[402714586,1768828232194,-192.3351523,0.00016438,2]
[402714589,1768828232206,-405.05,0.00016438,2]
[402714591,1768828232217,-402.6148477,0.00016438,2]
[402714593,1768828232228,-351.84,0.00016438,2]
[402714595,1768828232237,-500.0,0.00016438,2]
[402714597,1768828232246,-472.94877589,0.00016438,2]
[402714602,1768828232284,-33.92186974,0.00016438,2]
[402714604,1768828232294,-500.0,0.00016438,2]
[402714606,1768828232304,-500.0,0.00016438,2]
[402714608,1768828232313,-500.0,0.00016438,2]
[402714610,1768828232322,-500.0,0.00016438,2]
[402714612,1768828232332,-500.0,0.00016438,2]
[402714614,1768828232341,-500.0,0.00016438,2]
[402714616,1768828232351,-500.0,0.00016438,2]
[402714643,1768828232645,-500.0,0.00016438,2]
[402714645,1768828232660,-239.98947927,0.00016438,2]
[402714647,1768828232669,-500.0,0.00016438,2]
[402714648,1768828232679,-500.0,0.00016438,2]
[402714650,1768828232688,-500.0,0.00016438,2]
[402714652,1768828232697,-500.0,0.00016438,2]
[402714654,1768828232707,-500.0,0.00016438,2]
[402714656,1768828232715,-500.0,0.00016438,2]
[402714657,1768828232725,-500.0,0.00016438,2]
[402714659,1768828232734,-500.0,0.00016438,2]
[402714661,1768828232743,-500.0,0.00016438,2]
[402714663,1768828232753,-36.65994472,0.00016438,2]
[402714665,1768828232764,-463.34005528,0.00016438,2]
[402714667,1768828232773,-500.0,0.00016438,2]
[402714668,1768828232785,-500.0,0.00016438,2]
[402714670,1768828232795,-500.0,0.00016438,2]
[402714672,1768828232805,-500.0,0.00016438,2]
[402714674,1768828232815,-500.0,0.00016438,2]
[402714676,1768828232824,-500.0,0.00016438,2]
[402714678,1768828232834,-500.0,0.00016438,2]
[402714680,1768828232843,-500.0,0.00016438,2]
[402714681,1768828232852,-500.0,0.00016438,2]
[402714683,1768828232862,-500.0,0.00016438,2]
[402714685,1768828232871,-371.03063488,0.00016438,2]
[402714688,1768828232890,-128.96936512,0.00016438,2]
[402714689,1768828232900,-500.0,0.00016438,2]
[402714691,1768828232910,-125.69696301,0.00016438,2]
[402714693,1768828232922,-374.30303699,0.00016438,2]
[402714695,1768828232932,-500.0,0.00016438,2]
[402714696,1768828232941,-58.01601423,0.00016438,2]
[402714697,1768828232953,-441.98398577,0.00016438,2]
[402714698,1768828232963,-500.0,0.00016438,2]
[402714699,1768828232972,-500.0,0.00016438,2]
[402714700,1768828232982,-300.0,0.00016438,2]
[402714701,1768828232992,-203.67816829,0.00016438,2]
[402714702,1768828233002,-285.81977471,0.00016527,2]
[402714703,1768828233011,-500.0,0.00016548,2]
[402714704,1768828233021,-231.28,0.00016604,2]
[402714705,1768828233031,-182.11,0.00016626,2]
[402714706,1768828233041,-243.95,0.00016638,2]
[402714707,1768828233050,-500.0,0.00016652,2]
[402714708,1768828233060,-2348.85188508,0.00016675,2]
[402714709,1768828233070,-2063.61359853,0.00016675,2]
[402714710,1768828233079,-296.44,0.00016683,2]
[402714711,1768828233090,-351.84,0.00016712,2]
[402714712,1768828233103,-166.34,0.00016712,2]
[402714713,1768828233113,-821.59,0.00016778,2]
[402714714,1768828233123,-300.0,0.00016824,2]
[402714715,1768828233132,-217.51112568,0.00016885,2]
[402714716,1768828233143,-2325.13080146,0.000169,2]
[402714717,1768828233152,-2325.13080144,0.000169,2]
[402714718,1768828233161,-2325.13080144,0.000169,2]
[402714719,1768828233172,-1818.79,0.00016904,2]
[402714720,1768828233182,-2348.85188508,0.0001692,2]
[402714721,1768828233192,-2063.61359853,0.0001692,2]
[402714722,1768828233201,-374.0,0.00016942,2]
[402714723,1768828233211,-1600.0,0.00016945,2]
[402714724,1768828233220,-351.84,0.00016986,2]
[402714725,1768828233230,-250.0,0.00016988,2]
[402714726,1768828233239,-354.60410027,0.00017018,2]
[402714727,1768828233248,-300.0,0.00017018,2]
[402714728,1768828233258,-374.0,0.00017072,2]
[402714729,1768828233268,-374.0,0.00017075,2]
[402714730,1768828233278,-374.0,0.00017096,2]
[402714731,1768828233287,-322.6107,0.00017099,2]
[402714732,1768828233297,-174.61919141,0.00017099,2]
[402714733,1768828233306,-4444.0,0.00017099,2]
[402714734,1768828233316,-578.20924308,0.00017099,2]
[402714735,1768828233325,-620.0,0.00017099,2]
[402714736,1768828233335,-574.12855637,0.00017099,2]
[402714737,1768828233344,-150.0,0.000171,2]
[402714738,1768828233354,-1680.0,0.00017112,2]
[402714739,1768828233363,-2348.85188508,0.00017165,2]
[402714740,1768828233373,-2063.61359853,0.00017165,2]
[402714741,1768828233382,-374.0,0.00017231,2]
[402714742,1768828233391,-351.84,0.0001726,2]
[402714743,1768828233401,-1000.0,0.0001726,2]
[402714744,1768828233411,-442.0,0.00017326,2]
[402714745,1768828233420,-374.0,0.00017362,2]
[402714746,1768828233429,-374.0,0.00017386,2]
[402714747,1768828233439,-374.0,0.00017393,2]
[402714748,1768828233449,-2348.85188508,0.0001741,2]
[402714749,1768828233458,-2063.61359853,0.0001741,2]
[402714750,1768828233467,-442.0,0.00017446,2]
[402714751,1768828233477,-374.0,0.00017455,2]
[402714752,1768828233486,-505.0,0.00017479,2]
[402714753,1768828233496,-374.0,0.00017491,2]
[402714754,1768828233505,-2000.0,0.000175,2]
[402714755,1768828233515,-2011.56,0.000175,2]
[402714756,1768828233524,-351.85,0.00017534,2]
[402714757,1768828233534,-1000.0,0.00017534,2]
[402714758,1768828233543,-889.9,0.00017544,2]
[402714759,1768828233553,-243.95,0.00017562,2]
[402714760,1768828233562,-889.9,0.00017585,2]
[402714761,1768828233572,-889.9,0.00017627,2]
[402714762,1768828233581,-3619.86395191,0.0001764,2]
[402714763,1768828233591,-181.08010149,0.00017647,2]
[402714764,1768828233600,-595.37131296,0.00017647,2]
[402714765,1768828233609,-2348.85188508,0.00017655,2]
[402714766,1768828233619,-2063.61359853,0.00017655,2]
[402714767,1768828233628,-889.9,0.00017668,2]
[402714768,1768828233637,-1000.0,0.00017697,2]
[402714769,1768828233647,-889.9,0.0001771,2]
[402714770,1768828233656,-244.64822252,0.00017718,2]
[402714771,1768828233665,-150.0,0.00017725,2]
[402714772,1768828233674,-500.0,0.00017725,2]
[402714773,1768828233683,-500.0,0.00017725,2]
[402714774,1768828233692,-500.0,0.00017725,2]
[402714775,1768828233701,-500.0,0.00017725,2]
[402714776,1768828233710,-150.0,0.00017725,2]
[402714777,1768828233720,-4651.0,0.00017727,2]
[402714778,1768828233729,-9999.99,0.00017728,2]
[402714779,1768828233739,-749.31,0.00017728,2]
[402714780,1768828233748,-310.22,0.00017728,2]
[402714781,1768828233758,-5341.7,0.00017728,2]
[402714782,1768828233767,-183.24,0.00017728,2]
[402714783,1768828233776,-150.99,0.00017728,2]
[402714784,1768828233786,-26210.11,0.00017728,2]
[402714785,1768828233796,-1109.96,0.00017728,2]
[402714786,1768828233805,-299.99,0.00017728,4]
[402714787,1768828233815,-999.99,0.00017728,2]
[402714788,1768828233826,-1199.06,0.00017728,2]
[402714789,1768828233836,-1835.03,0.00017728,2]
[402714790,1768828233846,-1894.35,0.00017728,2]
[402714791,1768828233856,-150.99,0.00017728,2]
[402714792,1768828233866,-9999.99,0.00017728,2]
[402714793,1768828233876,-2000.0,0.00017736,2]
[402714794,1768828233886,-2000.0,0.00017736,2]
[402714795,1768828233895,-2000.0,0.00017736,2]
[402714796,1768828233905,-2000.0,0.00017736,2]
[402714797,1768828233915,-2000.0,0.00017736,2]
[402714798,1768828233925,-2000.0,0.00017736,2]
[402714799,1768828233934,-1593.735,0.00017736,2]
[402714800,1768828233943,-2000.0,0.00017737,2]
[402714801,1768828233953,-2000.0,0.00017737,2]
[402714802,1768828233963,-2000.0,0.00017737,2]
[402714803,1768828233972,-2000.0,0.00017737,2]
[402714804,1768828233982,-1332.0,0.00017747,2]
[402714805,1768828233991,-3473.0,0.00017747,2]
[402714806,1768828234001,-1414.045,0.00017747,2]
[402714807,1768828234011,-615.0,0.00017747,2]
[402714808,1768828234020,-1268.0,0.00017747,2]
[402714809,1768828234029,-351.0,0.00017747,2]
[402714810,1768828234039,-1202.0,0.00017747,2]
[402714811,1768828234048,-915.0,0.00017747,2]
[402714812,1768828234058,-4826.0,0.00017747,2]
[402714813,1768828234068,-566.0,0.00017747,2]
[402714814,1768828234077,-889.9,0.00017751,2]
[402714815,1768828234087,-150.0,0.0001778,2]
[402714816,1768828234099,-500.0,0.0001778,2]
[402714817,1768828234108,-500.0,0.0001778,2]
[402714818,1768828234117,-500.0,0.0001778,2]
[402714819,1768828234128,-500.0,0.0001778,2]
[402714820,1768828234138,-166.29990226,0.0001778,2]
[402714821,1768828234148,-1000.0,0.00017789,2]
[402714822,1768828234157,-889.9,0.00017793,2]
[402714823,1768828234167,-1000.0,0.00017796,2]
[402714824,1768828234176,-1000.0,0.00017797,2]
[402714825,1768828234186,-1000.0,0.00017799,2]
[402714826,1768828234195,-1000.0,0.00017799,2]
[402714827,1768828234205,-1000.0,0.00017799,2]
[402714828,1768828234214,-1000.0,0.000178,2]
[402714829,1768828234224,-773.017,0.00017808,2]
[402714830,1768828234233,-500.0,0.00017808,2]
[402714831,1768828234242,-551.0,0.00017808,2]
[402714832,1768828234251,-1000.0,0.00017808,2]
[402714833,1768828234260,-151.0,0.00017808,2]
[402714834,1768828234270,-151.0,0.00017808,2]
[402714835,1768828234279,-151.0,0.00017808,2]
[402714836,1768828234288,-151.0,0.00017808,2]
[402714837,1768828234298,-151.0,0.00017808,2]
[402714838,1768828234308,-151.0,0.00017808,2]
[402714839,1768828234317,-151.0,0.00017808,2]
[402714840,1768828234327,-151.0,0.00017808,2]
[402714841,1768828234337,-151.0,0.00017808,2]
[402714842,1768828234347,-151.0,0.00017808,2]
[402714843,1768828234356,-196.17114968,0.00017808,2]
[402714844,1768828234365,-1000.0,0.00017818,2]
[402714845,1768828234375,-1000.0,0.00017818,2]
[402714846,1768828234384,-1000.0,0.00017818,2]
[402714847,1768828234394,-1256.07579,0.0001782,2]
[402714848,1768828234403,-1256.0758,0.0001782,2]
[402714849,1768828234413,-150.0,0.00017827,2]
[402714850,1768828234422,-442.0,0.00017833,2]
[402714851,1768828234432,-889.9,0.00017834,2]
[402714852,1768828234440,-150.0,0.00017835,2]
[402714853,1768828234450,-500.0,0.00017835,2]
[402714854,1768828234459,-500.0,0.00017835,2]
[402714855,1768828234468,-500.0,0.00017835,2]
[402714856,1768828234478,-500.0,0.00017835,2]
[402714857,1768828234487,-1000.0,0.00017841,2]
[402714858,1768828234497,-168.0,0.00017844,2]
[402714859,1768828234507,-500.0,0.00017863,2]
[402714860,1768828234516,-889.9,0.00017876,2]
[402714861,1768828234525,-913.58419138,0.00017883,2]
[402714862,1768828234535,-500.0,0.00017889,2]
[402714863,1768828234545,-558.26785417,0.00017889,2]
[402714864,1768828234554,-500.0,0.00017889,2]
[402714865,1768828234563,-506.02760517,0.000179,2]
[402714866,1768828234573,-2497.72556845,0.000179,3]
[402714867,1768828234586,-4257.4469553,0.000179,3]
[402714868,1768828234598,-10994.86872169,0.000179,3]
[402714869,1768828234607,-4168.5871,0.000179,2]
[402714870,1768828234617,-2348.85188508,0.000179,2]
[402714871,1768828234626,-994.55401089,0.000179,2]
[402714872,1768828234636,-994.55401089,0.000179,2]
[402714873,1768828234645,-994.55401089,0.000179,2]
[402714874,1768828234655,-994.55401089,0.000179,2]
[402714875,1768828234665,-994.55401089,0.000179,2]
[402714876,1768828234677,-994.55401089,0.000179,2]
[402714877,1768828234687,-994.55401089,0.000179,2]
[402714878,1768828234699,-994.55401089,0.000179,2]
[402714879,1768828234709,-994.55401089,0.000179,2]
[402714880,1768828234719,-994.55401089,0.000179,2]
[402714881,1768828234728,-994.55401089,0.000179,2]
[402714882,1768828234737,-1309.64952262,0.000179,2]
[402714883,1768828234749,-753.96407591,0.000179,2]
[402714884,1768828234758,-994.55401089,0.000179,2]
[402714885,1768828234767,-994.55401089,0.000179,2]
[402714886,1768828234777,-994.55401089,0.000179,2]
[402714887,1768828234787,-994.55401089,0.000179,2]
[402714888,1768828234796,-994.55401089,0.000179,2]
[402714889,1768828234805,-994.55401089,0.000179,2]
[402714890,1768828234815,-994.55401089,0.000179,2]
[402714891,1768828234824,-994.55401089,0.000179,2]
[402714892,1768828234833,-190.2341892,0.000179,2]
[402714893,1768828234842,-8967.09261723,0.000179,2]
[402714894,1768828234851,-25925.05248005,0.000179,2]
[402714895,1768828234860,-224.32614929,0.000179,2]
[402714896,1768828234870,-189.32396817,0.000179,2]
[402714897,1768828234879,-124.04697621,0.00017904,2]
[402714898,1768828234928,-25.95302379,0.00017904,2]
[402714899,1768828234939,-375.0469762,0.00017913,2]
[402714906,1768828239572,-151.0,0.00016907,2]
[402714907,1768828239581,-498.40843535,0.0001699,2]
[402714908,1768828239592,-1.59156465,0.0001699,2]
[402714909,1768828239601,-2440.0,0.00017747,2]
[402714910,1768828239611,-624.9530238,0.00017913,2]
[402714911,1768828239620,-889.9,0.00017917,2]
[402714912,1768828239629,-500.0,0.00017918,2]
[402714913,1768828239639,-1000.0,0.00017932,2]
[402714914,1768828239648,-5800.0,0.00017937,2]
[402714915,1768828239659,-500.0,0.00017944,2]
[402714916,1768828239668,-500.0,0.00017944,2]
[402714917,1768828239677,-5800.0,0.00017946,2]
[402714918,1768828239687,-1000.0,0.00017948,2]
[402714919,1768828239696,-1000.0,0.00017951,2]
[402714920,1768828239704,-5800.0,0.00017954,2]
[402714921,1768828239713,-889.9,0.00017959,2]
[402714922,1768828239722,-151.0,0.00017959,2]
[402714923,1768828239731,-5800.0,0.00017963,2]
[402714924,1768828239740,-1000.0,0.00017965,2]
[402714925,1768828239750,-5800.0,0.00017971,2]
[402714926,1768828239759,-500.0,0.00017972,2]
[402714927,1768828239768,-500.0,0.00017973,2]
[402714928,1768828239778,-500.0,0.00017973,2]
[402714929,1768828239787,-500.0,0.00017973,2]
[402714930,1768828239796,-150.0,0.00017973,2]
[402714931,1768828239806,-150.0,0.00017973,2]
[402714932,1768828239815,-5800.0,0.00017979,2]
[402714933,1768828239824,-1000.0,0.00017982,2]
[402714934,1768828239834,-5800.0,0.00017988,2]
[402714935,1768828239844,-244.64822252,0.0001799,2]
[402714936,1768828239853,-244.64822252,0.0001799,2]
[402714937,1768828239863,-500.0,0.00017997,2]
[402714938,1768828239872,-500.0,0.00017997,2]
[402714939,1768828239882,-151.0,0.00017997,2]
[402714940,1768828239891,-98338.7738634,0.00017998,2]
[402714941,1768828239901,-8337.3040799,0.00017998,2]
[402714942,1768828239910,-295016.32159,0.00017998,2]
[402714943,1768828239919,-500.0,0.00017999,2]
[402714944,1768828239928,-500.0,0.00017999,2]
[402714945,1768828239938,-500.0,0.00017999,2]
[402714946,1768828239947,-500.0,0.00017999,2]
[402714947,1768828239957,-500.0,0.00017999,2]
[402714948,1768828239966,-500.0,0.00017999,2]
[402714949,1768828239975,-500.0,0.00017999,2]
[402714950,1768828239985,-500.0,0.00017999,2]
[402714951,1768828239994,-500.0,0.00017999,2]
[402714952,1768828240004,-500.0,0.00017999,2]
[402714953,1768828240013,-500.0,0.00017999,2]
[402714954,1768828240022,-500.0,0.00017999,2]
[402714955,1768828240031,-163.26702471,0.00017999,2]
[402714956,1768828240040,-666.0,0.00017999,2]
[402714957,1768828240049,-300.0,0.00017999,2]
[402714958,1768828240059,-300.0,0.00017999,2]
[402714959,1768828240068,-634.42261924,0.00017999,2]
[402714960,1768828240077,-150.0,0.00018,2]
[402714961,1768828240085,-2859601.47407587,0.00018,2]
[402714964,1768828240100,-329.00491005,0.00018,2]
[402714965,1768828240129,-1564.88659624,0.00018,2]
[402714972,1768828242542,-151.0,0.00016907,2]
[402714973,1768828242553,-850.403706,0.00018,2]
[402714974,1768828242651,-1057.14429685,0.00018,2]
[402714975,1768828242706,-270.37340776,0.00018,2]
[402714976,1768828242815,-528337.04610791,0.00018,2]
[402714992,1768828245538,-1890.52788908,0.00018,2]
[402714993,1768828245551,-1159.95,0.00018,2]
[402714994,1768828245644,-720.1557008,0.00018,2]
[402714995,1768828245656,-3967.82334639,0.00018,2]
[402714996,1768828245700,-738.80000004,0.00018,2]
[402714999,1768828267274,-350.0,0.0002,30]
[402715001,1768828740870,251.65900056,0.00015467,2]
[402715002,1768828763031,2013.0,0.000154,2]
[402715003,1768828798325,1199.0,0.00027397,120]
[402715004,1768828895074,1364.115,0.00015255,2]
[402715005,1768828895110,165.395,0.00015255,2]
[402715007,1768828948496,4768.8402,0.00015467,2]
[402715010,1768829003491,236.8728,0.00015467,2]
[402715025,1768829042577,153.34721639,0.00015467,2]
[402715034,1768829153066,1046.78078305,0.000133,2]
[402715035,1768829153091,9225.22960818,0.000133,2]
[402715036,1768829160197,774.78039182,8e-05,2]
[402715037,1768829160220,10000.01,8e-05,2]
[402715038,1768829160245,3962.58422205,8e-05,2]
[402715039,1768829164019,4990.6449949,0.00011,2]
[402715040,1768829168969,1046.78078305,7.945e-05,2]
[402715041,1768829168993,3060.79988995,7.945e-05,2]
[402715042,1768829187026,673.0,0.00015471,2]
[402715044,1768829299608,273.0,0.00015471,2]
[402715045,1768829314591,5993.21011005,0.0001,2]
[402715046,1768829314616,1728.7426904,0.0001,2]
[402715047,1768829349893,8271.2673096,0.00015467,2]
[402715048,1768829354687,-414.07024098,0.00015467,2]
[402715049,1768829357838,-161.80446071,0.00015467,2]
[402715050,1768829360336,-215.14510851,0.00015467,2]
[402715051,1768829362071,-218.24227358,0.00015467,2]
[402715052,1768829364150,-228.27248753,0.00015467,2]
[402715053,1768829366142,-265.70291514,0.00015467,2]
[402715054,1768829367532,-228.46088989,0.00015467,2]
[402715055,1768829369912,-5508.51490076,0.00015467,2]
[402715056,1768829370016,-195.1085223,0.00015467,2]
[402715057,1768829371620,-10000.01,0.00015467,2]
[402715058,1768829371971,-268.1609877,0.00015467,2]
[402715059,1768829374546,-158.50428481,0.00015467,2]
[402715060,1768829374673,-10000.01,0.00015467,2]
[402715061,1768829376897,-230.15741242,0.00015467,2]
[402715062,1768829380801,-252.85258151,0.00015467,2]
[402715063,1768829382246,-176.2629968,0.00015467,2]
[402715064,1768829384293,-263.02138044,0.00015467,2]
[402715065,1768829389036,-159.10899073,0.00015467,2]
[402715066,1768829389070,153.34721638,0.00015367,2]
[402715067,1768829390631,-318.22475805,0.00015467,2]
[402715068,1768829393047,-215.74450503,0.00015467,2]
[402715069,1768829396328,-431.28818409,0.00015467,2]
[402715070,1768829398490,-283.29410064,0.00015467,2]
[402715071,1768829399955,-250.0,0.00015467,2]
[402715072,1768829401660,-151.21241997,0.00015466,2]
[402715073,1768829404743,-148.78758003,0.00015466,2]
[402715074,1768829404768,-82.77114601,0.00015466,2]
[402715075,1768829406155,-269.69758806,0.00015466,2]
[402715076,1768829409004,-275.80053399,0.00015466,2]
[402715077,1768829410203,2138.03,0.00015457,2]
[402715078,1768829410412,2138.03,0.00015457,2]
[402715079,1768829410613,2138.03,0.00015457,2]
[402715080,1768829410820,2138.03,0.00015457,2]
[402715081,1768829411822,1294.54278362,0.00015457,2]
[402715082,1768829411846,843.48721638,0.00015457,2]
[402715083,1768829412464,3105.51,0.00015457,2]
[402715084,1768829412657,3105.51,0.00015457,2]
[402715085,1768829415079,-291.89831498,0.00015466,2]
[402715086,1768829415646,2945.50278362,0.000154,2]
[402715087,1768829415670,1151.61038142,0.000154,2]
[402715088,1768829416545,-279.83241696,0.00015466,2]
[402715089,1768829416568,-32.87720097,0.00015466,2]
[402715090,1768829419042,-182.90599203,0.00015466,2]
[402715091,1768829421691,-84.216807,0.00015466,2]
[402715092,1768829421713,-106.9635724,0.00015466,2]
[402715093,1768829423727,-143.0364276,0.00015466,2]
[402715094,1768829423757,-56.18644647,0.00015467,2]
[402715095,1768829425212,-206.69690622,0.00015467,2]
[402715105,1768829431639,-1483.45283416,0.00015467,2]
[402715106,1768829431700,-3753.07156661,0.00015467,2]
[402715107,1768829431712,-7477.9414305,0.00015467,2]
[402715108,1768829431723,-1487.95536,0.00015467,2]
[402715109,1768829431738,-5879.39187,0.00015467,2]
[402715110,1768829431754,-510.0,0.00015467,2]
[402715111,1768829431766,-1650.0,0.00015467,2]
[402715112,1768829431778,-1027.11678612,0.00015467,2]
[402715113,1768829431818,-192986.8737817,0.00015467,2]
[402715114,1768829431830,-3506.30012721,0.00015467,2]
[402715115,1768829431842,-37713.88652183,0.00015467,2]
[402715116,1768829431877,-753.54269787,0.00015467,2]
[402715117,1768829434576,-296.54979534,0.00015467,2]
[402715118,1768829436788,-209.97166445,0.00015467,2]
[402715120,1768829437905,-28272.52426398,0.00015467,2]
[402715154,1768829439297,-201.28433964,0.00015467,2]
[402715155,1768829440177,-19149.37087493,0.00015467,2]
[402715157,1768829440364,-512034.53804175,0.00015467,2]
[402715158,1768829440376,-2004.9914,0.00015467,2]
[402715160,1768829440388,-254.83220694,0.00015525,2]
[402715161,1768829440398,-151.0,0.00015564,2]
[402715162,1768829440410,-620.0,0.00015564,2]
[402715163,1768829440421,-276.08,0.00015565,2]
[402715164,1768829440433,-500.0,0.00015566,2]
[402715165,1768829440444,-500.0,0.00015566,2]
[402715166,1768829440456,-500.0,0.00015566,2]
[402715167,1768829440468,-500.0,0.00015566,2]
[402715168,1768829440481,-350.0,0.00015567,2]
[402715169,1768829440492,-350.0,0.00015567,2]
[402715170,1768829440504,-350.0,0.00015567,2]
[402715171,1768829440516,-350.0,0.00015567,2]
[402715172,1768829440530,-350.0,0.00015567,2]
[402715173,1768829440541,-350.0,0.00015567,2]
[402715174,1768829440551,-350.0,0.00015567,2]
[402715175,1768829440563,-350.0,0.00015567,2]
[402715176,1768829440574,-350.0,0.00015567,2]
[402715177,1768829440584,-350.0,0.00015567,2]
[402715178,1768829440596,-350.0,0.00015567,2]
[402715179,1768829440610,-350.0,0.00015567,2]
[402715180,1768829440623,-350.0,0.00015567,2]
[402715181,1768829440634,-350.0,0.00015567,2]
[402715182,1768829440644,-350.0,0.00015567,2]
[402715183,1768829440654,-350.0,0.00015567,2]
[402715184,1768829440664,-350.0,0.00015567,2]
[402715185,1768829440674,-350.0,0.00015567,2]
[402715186,1768829440685,-350.0,0.00015567,2]
[402715187,1768829440697,-350.0,0.00015567,2]
[402715188,1768829440708,-350.0,0.00015567,2]
[402715189,1768829440719,-350.0,0.00015567,2]
[402715190,1768829440729,-350.0,0.00015567,2]
[402715191,1768829440740,-350.0,0.00015567,2]
[402715192,1768829440752,-350.0,0.00015567,2]
[402715193,1768829440764,-350.0,0.00015567,2]
[402715194,1768829440776,-350.0,0.00015567,2]
[402715195,1768829440787,-350.0,0.00015567,2]
[402715196,1768829440798,-350.0,0.00015567,2]
[402715197,1768829440809,-350.0,0.00015567,2]
[402715198,1768829440819,-350.0,0.00015567,2]
[402715199,1768829440832,-350.0,0.00015567,2]
[402715200,1768829440843,-350.0,0.00015567,2]
[402715201,1768829440854,-350.0,0.00015567,2]
[402715202,1768829440870,-350.0,0.00015567,2]
[402715203,1768829440881,-350.0,0.00015567,2]
[402715204,1768829440892,-350.0,0.00015567,2]
[402715205,1768829440903,-350.0,0.00015567,2]
[402715206,1768829440914,-350.0,0.00015567,2]